fUST/lending_fUST_20240705
["ID","MTS","AMOUNT","RATE_DAILY","PERIOD"]
[331174587,1720117860936,-160.075221,0.00015576,2]
[331174588,1720117860946,-160.075221,0.00015576,2]
[331174589,1720117860955,-151.0,0.00015615,2]
[331174590,1720117860963,-520.883091,0.00015615,2]
[331174591,1720117860972,-520.883091,0.00015615,2]
[331174592,1720117860982,-25564.90858929,0.00015616,2]
[331174593,1720117860991,-731.52,0.00015616,2]
[331174594,1720117861000,-500.0,0.00015616,2]
[331174595,1720117861009,-739.73,0.00015616,2]
[331174596,1720117861019,-500.0,0.00015616,2]
[331174597,1720117861028,-500.0,0.00015616,2]
[331174598,1720117861037,-555.76,0.00015616,2]
[331174599,1720117861046,-220.1152394,0.00015616,2]
[331174600,1720117861055,-6504.33,0.00015616,2]
[331174601,1720117861065,-151.0,0.00015616,2]
[331174602,1720117861074,-500.0,0.00015616,2]
[331174603,1720117861083,-3549.21,0.00015616,2]
[331174604,1720117861092,-599.81,0.00015616,2]
[331174605,1720117861101,-522.57,0.00015616,2]
[331174606,1720117861110,-500.0,0.00015616,2]
[331174607,1720117861119,-500.0,0.00015616,2]
[331174608,1720117861128,-1393.66,0.00015616,2]
[331174609,1720117861137,-500.0,0.00015616,2]
[331174610,1720117861147,-962.93,0.00015616,2]
[331174611,1720117861156,-591.44,0.00015616,2]
[331174612,1720117861165,-1145.73,0.00015616,2]
[331174613,1720117861174,-224.99855727,0.00015616,2]
[331174614,1720117861184,-686.97,0.00015616,2]
[331174615,1720117861193,-689.93,0.00015616,2]
[331174616,1720117861205,-500.0,0.00015616,2]
[331174617,1720117861214,-605.13,0.00015616,2]
[331174618,1720117861223,-513.32,0.00015616,2]
[331174619,1720117861233,-500.0,0.00015616,2]
[331174620,1720117861242,-151.0,0.00015616,2]
[331174621,1720117861253,-151.0,0.00015616,2]
[331174622,1720117861262,-667.91,0.00015616,2]
[331174623,1720117861271,-500.0,0.00015616,2]
[331174624,1720117861280,-500.0,0.00015616,2]
[331174625,1720117861290,-500.0,0.00015616,2]
[331174626,1720117861298,-432.9599359,0.00015616,2]
[331174627,1720117861308,-7275.38,0.00015616,2]
[331174628,1720117861317,-500.0,0.00015616,2]
[331174629,1720117861326,-355.79847162,0.00015616,2]
[331174630,1720117861336,-500.0,0.00015616,2]
[331174631,1720117861345,-757.2,0.00015616,2]
[331174632,1720117861354,-500.0,0.00015616,2]
[331174633,1720117861363,-542.59,0.00015616,2]
[331174634,1720117861373,-500.0,0.00015616,2]
[331174635,1720117861382,-500.0,0.00015616,2]
[331174636,1720117861392,-1625.47,0.00015616,2]
[331174637,1720117861402,-500.0,0.00015616,2]
[331174638,1720117861411,-806.18,0.00015616,2]
[331174639,1720117861421,-500.0,0.00015616,2]
[331174640,1720117861431,-500.0,0.00015616,2]
[331174641,1720117861440,-2514.23,0.00015616,2]
[331174642,1720117861449,-1322.64,0.00015616,2]
[331174643,1720117861462,-857.86,0.00015616,2]
[331174644,1720117861471,-788.08,0.00015616,2]
[331174645,1720117861481,-4470.88,0.00015616,2]
[331174646,1720117861490,-4284.6,0.00015616,2]
[331174647,1720117861500,-500.0,0.00015616,2]
[331174648,1720117861511,-4365.38,0.00015616,2]
[331174649,1720117861521,-651.08,0.00015616,2]
[331174650,1720117861531,-2441.61,0.00015616,2]
[331174651,1720117861540,-1394.15,0.00015616,2]
[331174652,1720117861549,-500.0,0.00015616,2]
[331174653,1720117861559,-500.0,0.00015616,2]
[331174654,1720117861569,-500.0,0.00015616,2]
[331174655,1720117861580,-16891.7,0.00015616,2]
[331174656,1720117861592,-689.37,0.00015616,2]
[331174657,1720117861603,-1749.41,0.00015616,2]
[331174658,1720117861612,-1109.04,0.00015616,2]
[331174659,1720117861622,-3069.41,0.00015616,2]
[331174660,1720117861631,-392.047728,0.00015616,2]
[331174661,1720117861643,-6543.21,0.00015616,2]
[331174662,1720117861653,-1186.01,0.00015616,2]
[331174663,1720117861662,-392.047728,0.00015616,2]
[331174664,1720117861674,-865.39,0.00015616,2]
[331174665,1720117861684,-5419.86,0.00015616,2]
[331174666,1720117861693,-328.215833,0.00015616,2]
[331174667,1720117861703,-328.215833,0.00015616,2]
[331174668,1720117861716,-1414.48,0.00015616,2]
[331174669,1720117861724,-530.11,0.00015616,2]
[331174670,1720117861734,-6134.78,0.00015616,2]
[331174671,1720117861745,-151.0,0.00015616,2]
[331174672,1720117861754,-212.711299,0.00015616,2]
[331174673,1720117861764,-212.711299,0.00015616,2]
[331174674,1720117861774,-306.0,0.00015616,2]
[331174675,1720117861783,-153.0,0.00015726,2]
[331174676,1720117861794,-153.0,0.00015726,2]
[331174677,1720117861804,-153.0,0.00015863,2]
[331174678,1720117861814,-731.52,0.0001589,2]
[331174679,1720117861823,-252.28772579,0.0001589,2]
[331174680,1720117861897,-739.73,0.0001589,2]
[331174681,1720117861908,-500.0,0.0001589,2]
[331174682,1720117861919,-500.0,0.0001589,2]
[331174683,1720117861928,-555.76,0.0001589,2]
[331174684,1720117861938,-6504.33,0.0001589,2]
[331174685,1720117861947,-482.12419674,0.0001589,2]
[331174686,1720117861959,-3549.21,0.0001589,2]
[331174687,1720117861968,-599.81,0.0001589,2]
[331174688,1720117861978,-522.57,0.0001589,2]
[331174689,1720117861987,-500.0,0.0001589,2]
[331174690,1720117861996,-500.0,0.0001589,2]
[331174691,1720117862005,-1393.66,0.0001589,2]
[331174692,1720117862014,-500.0,0.0001589,2]
[331174693,1720117862022,-962.93,0.0001589,2]
[331174694,1720117862032,-591.44,0.0001589,2]
[331174695,1720117862041,-1145.73,0.0001589,2]
[331174696,1720117862050,-686.97,0.0001589,2]
[331174697,1720117862059,-689.93,0.0001589,2]
[331174698,1720117862068,-500.0,0.0001589,2]
[331174699,1720117862077,-513.32,0.0001589,2]
[331174700,1720117862086,-605.13,0.0001589,2]
[331174701,1720117862096,-222.81022711,0.0001589,2]
[331174702,1720117862106,-667.91,0.0001589,2]
[331174703,1720117862115,-500.0,0.0001589,2]
[331174704,1720117862124,-500.0,0.0001589,2]
[331174705,1720117862133,-500.0,0.0001589,2]
[331174706,1720117862143,-7275.38,0.0001589,2]
[331174707,1720117862151,-500.0,0.0001589,2]
[331174708,1720117862161,-500.0,0.0001589,2]
[331174709,1720117862169,-757.2,0.0001589,2]
[331174710,1720117862179,-475.503676,0.0001589,2]
[331174711,1720117862188,-151.0,0.0001589,2]
[331174712,1720117862197,-475.503676,0.0001589,2]
[331174713,1720117862209,-595.77233028,0.0001589,2]
[331174714,1720117862218,-542.59,0.0001589,2]
[331174715,1720117862227,-500.0,0.0001589,2]
[331174716,1720117862237,-500.0,0.0001589,2]
[331174717,1720117862247,-151.0,0.0001589,2]
[331174718,1720117862256,-1625.47,0.0001589,2]
[331174719,1720117862266,-500.0,0.0001589,2]
[331174720,1720117862275,-806.18,0.0001589,2]
[331174721,1720117862284,-500.0,0.0001589,2]
[331174722,1720117862294,-160.075221,0.0001589,2]
[331174723,1720117862303,-160.075221,0.0001589,2]
[331174724,1720117862312,-500.0,0.0001589,2]
[331174725,1720117862321,-2514.23,0.0001589,2]
[331174726,1720117862330,-1322.64,0.0001589,2]
[331174727,1720117862340,-172.106,0.0001589,2]
[331174728,1720117862350,-857.86,0.0001589,2]
[331174729,1720117862359,-172.106,0.0001589,2]
[331174730,1720117862368,-788.08,0.0001589,2]
[331174731,1720117862377,-4470.88,0.0001589,2]
[331174732,1720117862387,-500.0,0.0001589,2]
[331174733,1720117862396,-4284.6,0.0001589,2]
[331174734,1720117862419,-4365.38,0.0001589,2]
[331174735,1720117862435,-651.08,0.0001589,2]
[331174736,1720117862457,-2441.61,0.0001589,2]
[331174737,1720117862478,-1394.15,0.0001589,2]
[331174738,1720117862499,-799.804558,0.0001589,2]
[331174739,1720117862514,-275.120362,0.0001589,2]
[331174740,1720117862535,-799.804558,0.0001589,2]
[331174741,1720117862551,-275.120362,0.0001589,2]
[331174742,1720117862568,-500.0,0.0001589,2]
[331174743,1720117862590,-500.0,0.0001589,2]
[331174744,1720117862609,-500.0,0.0001589,2]
[331174745,1720117862623,-16891.7,0.0001589,2]
[331174746,1720117862642,-151.0,0.0001589,2]
[331174747,1720117862656,-689.37,0.0001589,2]
[331174748,1720117862673,-1749.41,0.0001589,2]
[331174749,1720117862686,-1109.04,0.0001589,2]
[331174750,1720117862700,-764.930036,0.0001589,2]
[331174751,1720117862719,-3069.41,0.0001589,2]
[331174752,1720117862734,-6543.21,0.0001589,2]
[331174753,1720117862752,-1186.01,0.0001589,2]
[331174754,1720117862766,-764.930036,0.0001589,2]
[331174755,1720117862781,-865.39,0.0001589,2]
[331174756,1720117862795,-5419.86,0.0001589,2]
[331174757,1720117862809,-1414.48,0.0001589,2]
[331174758,1720117862823,-530.11,0.0001589,2]
[331174759,1720117862837,-6134.78,0.0001589,2]
[331174760,1720117862852,-350.0,0.00015993,2]
[331174761,1720117862866,-1130.78354577,0.00015995,2]
[331174762,1720117862880,-731.52,0.00016164,2]
[331174763,1720117862893,-739.73,0.00016164,2]
[331174764,1720117862907,-500.0,0.00016164,2]
[331174765,1720117862921,-500.0,0.00016164,2]
[331174766,1720117862934,-151.0,0.00016164,2]
[331174767,1720117862949,-151.0,0.00016164,2]
[331174768,1720117862964,-151.0,0.00016164,2]
[331174769,1720117862974,-555.76,0.00016164,2]
[331174770,1720117862983,-6504.33,0.00016164,2]
[331174771,1720117862992,-151.0,0.00016164,2]
[331174772,1720117863002,-3549.21,0.00016164,2]
[331174773,1720117863012,-599.81,0.00016164,2]
[331174774,1720117863021,-522.57,0.00016164,2]
[331174775,1720117863030,-500.0,0.00016164,2]
[331174776,1720117863039,-500.0,0.00016164,2]
[331174777,1720117863048,-1393.66,0.00016164,2]
[331174778,1720117863058,-300.62198821,0.00016164,2]
[331174779,1720117863068,-151.0,0.00016164,2]
[331174780,1720117863077,-151.0,0.00016164,2]
[331174781,1720117863086,-151.0,0.00016164,2]
[331174782,1720117863096,-962.93,0.00016164,2]
[331174783,1720117863106,-591.44,0.00016164,2]
[331174784,1720117863115,-253.802984,0.00016164,2]
[331174785,1720117863125,-1145.73,0.00016164,2]
[331174786,1720117863135,-151.0,0.00016164,2]
[331174787,1720117863145,-686.97,0.00016164,2]
[331174788,1720117863350,-151.0,0.00016164,2]
[331174789,1720117863363,-209.924961,0.00016164,2]
[331174790,1720117863373,-151.0,0.00016164,2]
[331174791,1720117863383,-151.0,0.00016164,2]
[331174792,1720117863392,-689.93,0.00016164,2]
[331174793,1720117863402,-500.0,0.00016164,2]
[331174794,1720117863411,-151.0,0.00016164,2]
[331174795,1720117863421,-513.32,0.00016164,2]
[331174796,1720117863431,-605.13,0.00016164,2]
[331174797,1720117863440,-151.0,0.00016164,2]
[331174798,1720117863450,-151.0,0.00016164,2]
[331174799,1720117863465,-151.0,0.00016164,2]
[331174800,1720117863476,-151.0,0.00016164,2]
[331174801,1720117863486,-151.0,0.00016164,2]
[331174802,1720117863496,-667.91,0.00016164,2]
[331174803,1720117863505,-500.0,0.00016164,2]
[331174804,1720117863515,-500.0,0.00016164,2]
[331174805,1720117863525,-500.0,0.00016164,2]
[331174806,1720117863535,-7275.38,0.00016164,2]
[331174807,1720117863544,-500.0,0.00016164,2]
[331174808,1720117863554,-151.0,0.00016164,2]
[331174809,1720117863563,-370.88098431,0.00016164,2]
[331174810,1720117863574,-757.2,0.00016164,2]
[331174811,1720117863584,-520.883091,0.00016164,2]
[331174812,1720117863594,-520.883091,0.00016164,2]
[331174813,1720117863605,-542.59,0.00016164,2]
[331174814,1720117863615,-500.0,0.00016164,2]
[331174815,1720117863625,-500.0,0.00016164,2]
[331174816,1720117863635,-1625.47,0.00016164,2]
[331174817,1720117863646,-806.18,0.00016164,2]
[331174818,1720117863656,-500.0,0.00016164,2]
[331174819,1720117863666,-500.0,0.00016164,2]
[331174820,1720117863676,-500.0,0.00016164,2]
[331174821,1720117863686,-2514.23,0.00016164,2]
[331174822,1720117863695,-1322.64,0.00016164,2]
[331174823,1720117863709,-857.86,0.00016164,2]
[331174824,1720117863718,-788.08,0.00016164,2]
[331174825,1720117863728,-4470.88,0.00016164,2]
[331174826,1720117863738,-500.0,0.00016164,2]
[331174827,1720117863747,-4284.6,0.00016164,2]
[331174828,1720117863757,-4365.38,0.00016164,2]
[331174829,1720117863766,-651.08,0.00016164,2]
[331174830,1720117863776,-2441.61,0.00016164,2]
[331174831,1720117863785,-1394.15,0.00016164,2]
[331174832,1720117863795,-500.0,0.00016164,2]
[331174833,1720117863804,-500.0,0.00016164,2]
[331174834,1720117863813,-500.0,0.00016164,2]
[331174835,1720117863824,-16891.7,0.00016164,2]
[331174836,1720117863833,-689.37,0.00016164,2]
[331174837,1720117863842,-1749.41,0.00016164,2]
[331174838,1720117863852,-1109.04,0.00016164,2]
[331174839,1720117863861,-392.047728,0.00016164,2]
[331174840,1720117863870,-3069.41,0.00016164,2]
[331174841,1720117863879,-6543.21,0.00016164,2]
[331174842,1720117863888,-1186.01,0.00016164,2]
[331174843,1720117863898,-392.047728,0.00016164,2]
[331174844,1720117863908,-865.39,0.00016164,2]
[331174845,1720117863918,-5419.86,0.00016164,2]
[331174846,1720117863928,-328.215833,0.00016164,2]
[331174847,1720117863937,-328.215833,0.00016164,2]
[331174848,1720117863947,-1414.48,0.00016164,2]
[331174849,1720117863960,-530.11,0.00016164,2]
[331174850,1720117863969,-6134.78,0.00016164,2]
[331174851,1720117863978,-151.0,0.00016164,2]
[331174852,1720117863988,-212.711299,0.00016164,2]
[331174853,1720117863997,-212.711299,0.00016164,2]
[331174854,1720117864007,-636.14062566,0.0001618,2]
[331174855,1720117864016,-2378.2974732,0.0001622,2]
[331174856,1720117864026,-150.0,0.00016232,2]
[331174857,1720117864035,-426.21,0.00016254,2]
[331174858,1720117864044,-48007.81603293,0.00016254,2]
[331174859,1720117864168,-8913.42127488,0.00016254,2]
[331174860,1720117864180,-2666.54836561,0.00016254,2]
[331174861,1720117864189,-8095.09198194,0.00016254,2]
[331174862,1720117934457,190.88240731,0.0001182,2]
[331174863,1720117951394,1245.6,0.00010959,2]
[331174864,1720117961909,1362.74,0.00010959,2]
[331174865,1720117972428,1135.61,0.00010959,2]
[331174866,1720117983110,996.76,0.00010959,2]
[331174867,1720117993625,907.65,0.00010959,2]
[331174868,1720118002341,1007.51341884,0.00010959,2]
[331174869,1720118002839,228.49463943,0.00010959,2]
[331174870,1720118004148,785.55,0.00010959,2]
[331174871,1720118011698,4402.412339,0.00010959,2]
[331174872,1720118014670,654.62,0.00010959,2]
[331174873,1720118018329,154.88383712,0.00010959,2]
[331174874,1720118021391,2101.43499469,0.00010959,2]
[331174875,1720118025228,691.39,0.00010959,2]
[331174876,1720118035974,576.16,0.00010959,2]
[331174877,1720118036167,958.29836361,0.00010959,2]
[331174878,1720118036193,3922.28124063,0.00010959,2]
[331174879,1720118037761,213.2155615,0.00010959,2]
[331174880,1720118039431,4696.33537857,0.00010959,2]
[331174881,1720118046471,480.13,0.00010959,2]
[331174882,1720118057002,400.11,0.00010959,2]
[331174883,1720118067511,333.42,0.00010959,2]
[331174888,1720118077381,3772.28040147,0.00010959,2]
[331174889,1720118078007,277.85,0.00010959,2]
[331174890,1720118081737,509.91756708,9.999e-05,2]
[331174891,1720118088554,231.54,0.00010959,2]
[331174892,1720118089646,661.66867911,9.999e-05,2]
[331174893,1720118099054,192.95,0.00010959,2]
[331174894,1720118099553,170.50472508,9.999e-05,2]
[331174895,1720118102336,154.88383712,0.00010959,2]
[331174897,1720118107280,239.25593046,0.00010959,2]
[331174898,1720118107362,16238.83627548,0.00010959,2]
[331174899,1720118107520,3772.28040147,0.00010959,2]
[331174900,1720118109883,160.8,0.00010959,2]
[331174901,1720118111309,531.95318398,9.999e-05,2]
[331174902,1720118111375,525.021528,9.999e-05,2]
[331174903,1720118113935,155.0300469,9.999e-05,2]
[331174904,1720118115883,517.68163433,9.999e-05,2]
[331174905,1720118116457,154.92180871,9.999e-05,2]
[331174906,1720118116952,160.0,9.999e-05,2]
[331174907,1720118118209,934.35217097,9.999e-05,2]
[331174908,1720118120385,804.0,0.00010959,2]
[331174909,1720118122869,724.89345985,9.999e-05,2]
[331174910,1720118123367,2101.43499469,0.00010959,2]
[331174911,1720118124248,523.5184986,9.999e-05,2]
[331174912,1720118126006,267.86041516,9.999e-05,2]
[331174913,1720118129887,776.91953525,9.999e-05,2]
[331174914,1720118131106,155.1996061,9.999e-05,2]
[331174915,1720118131136,599.73966422,9.999e-05,2]
[331174916,1720118135423,525.83951756,0.0001,2]
[331174918,1720118135911,458.07303913,9.999e-05,2]
[331174919,1720118138413,374.52908603,9.999e-05,2]
[331174920,1720118139438,4696.33537857,0.00010959,2]
[331174921,1720118142032,843.93968101,9.999e-05,2]
[331174922,1720118142230,159.29352405,9.999e-05,2]
[331174924,1720118146922,458.07303913,9.999e-05,2]
[331174925,1720118147125,196.1340342,9.999e-05,2]
[331174926,1720118151638,183.91438205,9.999e-05,2]
[331174927,1720118152432,209.13290508,9.999e-05,2]
[331174928,1720118153355,2101.43499469,0.00010959,2]
[331174930,1720118154778,193.18071048,9.999e-05,2]
[331174931,1720118159897,154.88383712,9.999e-05,2]
[331174932,1720118160422,304.2555101,9.999e-05,2]
[331174933,1720118162416,200.40980476,9.999e-05,2]
[331174934,1720118163034,175.15702556,9.999e-05,2]
[331174935,1720118163063,238.86451454,9.999e-05,2]
[331174936,1720118164956,155.3008146,9.999e-05,2]
[331174937,1720118166241,201.55452664,9.999e-05,2]
[331174938,1720118166996,164.51365991,9.999e-05,2]
[331174939,1720118168611,286.77263575,9.999e-05,2]
[331174940,1720118170739,510.0379586,9.999e-05,2]
[331174941,1720118170775,402.64531294,9.999e-05,2]
[331174942,1720118173249,208.60452074,9.999e-05,2]
[331174943,1720118173605,155.55411252,9.999e-05,2]
[331174944,1720118175896,576.08003937,9.999e-05,2]
[331174946,1720118175957,209.11287229,9.999e-05,2]
[331174947,1720118176386,159.95439401,9.999e-05,2]
[331174948,1720118179604,300.30956818,9.999e-05,2]
[331174949,1720118180378,221.30418609,9.999e-05,2]
[331174950,1720118180583,348.00165015,9.999e-05,2]
[331174951,1720118181569,318.55085575,9.999e-05,2]
[331174952,1720118185056,182.59092653,9.999e-05,2]
[331174953,1720118191456,159.09108557,9.999e-05,2]
[331174954,1720118193299,154.88383712,9.999e-05,2]
[331174955,1720118195332,154.88383712,9.999e-05,2]
[331174956,1720118198705,182.23237469,9.999e-05,2]
[331174957,1720118199615,155.04208817,9.999e-05,2]
[331174958,1720118201957,233.81097976,9.999e-05,2]
[331174959,1720118203647,329.32195945,9.999e-05,2]
[331174960,1720118204271,154.88383712,9.999e-05,2]
[331174961,1720118207514,425.17063083,9.999e-05,2]
[331174962,1720118208342,249.19750593,9.999e-05,2]
[331174963,1720118209266,303.55064539,9.999e-05,2]
[331174964,1720118209907,179.77136505,9.999e-05,2]
[331174965,1720118210346,16238.83627548,9.999e-05,2]
[331174966,1720118213791,184.69337699,9.999e-05,2]
[331174967,1720118215692,200.79020594,9.999e-05,2]
[331174968,1720118215725,207.95202431,9.999e-05,2]
[331174969,1720118216464,191.90215741,9.999e-05,2]
[331174970,1720118218106,154.88383712,9.999e-05,2]
[331174971,1720118219450,4696.33537857,9.999e-05,2]
[331174972,1720118219887,776.91953525,9.999e-05,2]
[331174973,1720118220273,157.36069011,9.999e-05,2]
[331174974,1720118220710,933.38048013,9.999e-05,2]
[331174975,1720118221957,374.52908603,9.999e-05,2]
[331174976,1720118222882,517.68163433,9.999e-05,2]
[331174977,1720118223142,309.7057795,9.999e-05,2]
[331174978,1720118226350,293.32916452,9.999e-05,2]
[331174979,1720118226612,158.10762138,9.999e-05,2]
[331174980,1720118227564,309.7057795,9.999e-05,2]
[331174981,1720118231034,843.51692823,9.999e-05,2]
[331174982,1720118231138,309.7057795,9.999e-05,2]
[331174983,1720118232877,2713.95279,9.999e-05,2]
[331174984,1720118233916,309.76765879,9.999e-05,2]
[331174985,1720118234266,525.83951756,0.0001,2]
[331174986,1720118236320,526.48427899,9.999e-05,2]
[331174987,1720118240284,249.75379284,9.999e-05,2]
[331174988,1720118245754,207.95202431,9.999e-05,2]
[331174989,1720118251209,402.27259055,9.999e-05,2]
[331174990,1720118251386,159.59622182,9.999e-05,2]
[331174991,1720118252970,193.69798923,9.999e-05,2]
[331174992,1720118262572,318.55085575,9.999e-05,2]
[331174993,1720118265261,509.79717556,9.999e-05,2]
[331174994,1720118265852,154.88383712,9.999e-05,2]
[331174995,1720118267576,286.77263575,9.999e-05,2]
[331174996,1720118267886,309.7057795,9.999e-05,2]
[331174997,1720118267918,172.13480972,9.999e-05,2]
[331174998,1720118268319,195.74610265,9.999e-05,2]
[331174999,1720118268458,209.01007071,9.999e-05,2]
[331175000,1720118269915,154.93892206,9.999e-05,2]
[331175001,1720118270505,305.10610289,9.999e-05,2]
[331175002,1720118274727,155.47393994,9.999e-05,2]
[331175003,1720118275696,154.86836189,9.999e-05,2]
[331175004,1720118276229,196.44024808,9.999e-05,2]
[331175005,1720118277358,2099.39520757,9.999e-05,2]
[331175006,1720118277786,154.86836189,9.999e-05,2]
[331175007,1720118280811,309.7057795,9.999e-05,2]
[331175008,1720118282580,189.58937883,9.999e-05,2]
[331175009,1720118284261,208.60452074,9.999e-05,2]
[331175010,1720118284383,369.38118446,9.999e-05,2]
[331175011,1720118285354,11209.31675671,9.999e-05,2]
[331175012,1720118287887,159.87679211,9.999e-05,2]
[331175014,1720118290890,154.86836189,9.999e-05,2]
[331175015,1720118293430,154.86836189,9.999e-05,2]
[331175016,1720118295262,208.60452074,9.999e-05,2]
[331175017,1720118295296,156.96276997,9.999e-05,2]
[331175018,1720118295942,374.52908603,9.999e-05,2]
[331175019,1720118297850,155.81572269,9.999e-05,2]
[331175020,1720118311183,293.40080966,9.999e-05,2]
[331175021,1720118313101,309.7057795,9.999e-05,2]
[331175022,1720118314898,776.17162697,9.999e-05,2]
[331175023,1720118316439,165.04858892,9.999e-05,2]
[331175024,1720118317654,566.40031825,9.999e-05,2]
[331175025,1720118318458,4696.33537857,9.999e-05,2]
[331175026,1720118321181,200.84456934,9.999e-05,2]
[331175027,1720118323525,425.33751442,9.999e-05,2]
[331175028,1720118323628,154.86836189,9.999e-05,2]
[331175029,1720118325524,158.15295875,9.999e-05,2]
[331175030,1720118325954,297.56578136,9.999e-05,2]
[331175031,1720118327428,154.86836189,9.999e-05,2]
[331175032,1720118328111,154.86836189,9.999e-05,2]
[331175033,1720118329168,402.27259055,9.999e-05,2]
[331175034,1720118330267,157.39913555,9.999e-05,2]
[331175035,1720118330380,159.1230824,9.999e-05,2]
[331175036,1720118335616,154.86836189,9.999e-05,2]
[331175037,1720118336179,200.84456934,9.999e-05,2]
[331175038,1720118342375,154.87576558,9.999e-05,2]
[331175039,1720118343912,517.22863907,9.999e-05,2]
[331175040,1720118346423,154.86836189,9.999e-05,2]
[331175041,1720118348884,525.15058408,9.999e-05,2]
[331175042,1720118349610,155.55411252,9.999e-05,2]
[331175043,1720118350922,190.45263152,9.999e-05,2]
[331175044,1720118351601,661.12832609,9.999e-05,2]
[331175045,1720118355502,158.15295875,9.999e-05,2]
[331175046,1720118356575,172.84080813,9.999e-05,2]
[331175047,1720118357264,525.83951756,0.0001,2]
[331175048,1720118359465,209.0614715,9.999e-05,2]
[331175049,1720118359576,286.77263575,9.999e-05,2]
[331175050,1720118362581,318.55085575,9.999e-05,2]
[331175051,1720118368296,525.83951756,0.0001,2]
[331175052,1720118368699,155.35394616,9.999e-05,2]
[331175054,1720118371860,154.86836189,9.999e-05,2]
[331175055,1720118383886,154.86836189,9.999e-05,2]
[331175056,1720118385898,156.00822159,9.999e-05,2]
[331175057,1720118386169,309.7057795,9.999e-05,2]
[331175058,1720118386370,176.74654804,9.999e-05,2]
[331175059,1720118390334,195.74610265,9.999e-05,2]
[331175060,1720118391042,843.72830462,9.999e-05,2]
[331175061,1720118391930,295.25553373,9.999e-05,2]
[331175062,1720118394323,531.11088939,9.999e-05,2]
[331175063,1720118394356,154.86836189,9.999e-05,2]
[331175064,1720118394903,154.86836189,9.999e-05,2]
[331175065,1720118403770,509.52742891,9.999e-05,2]
[331175066,1720118405922,457.83791694,9.999e-05,2]
[331175067,1720118406881,159.95439401,9.999e-05,2]
[331175068,1720118408894,275.4762825,9.999e-05,2]
[331175069,1720118409333,154.86836189,9.999e-05,2]
[331175070,1720118415441,221.71148994,9.999e-05,2]
[331175071,1720118425036,291.98491265,9.999e-05,2]
[331175072,1720118425289,157.39913555,9.999e-05,2]
[331175074,1720118427692,566.53949771,9.999e-05,2]
[331175075,1720118428910,776.91953525,9.999e-05,2]
[331175076,1720118431121,4690.65227832,9.999e-05,2]
[331175077,1720118434178,540.30637939,9.999e-05,2]
[331175078,1720118437174,159.95439401,9.999e-05,2]
[331175079,1720118437754,293.40080966,9.999e-05,2]
[331175080,1720118439902,372.44870486,9.999e-05,2]
[331175081,1720118446141,159.98450435,9.999e-05,2]
[331175082,1720118452440,200.09371534,9.999e-05,2]
[331175083,1720118455744,215.8073332,9.999e-05,2]
[331175085,1720118457726,166.09985707,9.999e-05,2]
[331175086,1720118462576,382.47346366,9.999e-05,2]
[331175087,1720118466876,155.46898937,9.999e-05,2]
[331175088,1720118470472,323.92651042,9.999e-05,2]
[331175089,1720118471870,618.2814932,0.00011194,2]
[331175090,1720118472214,200.84456934,9.999e-05,2]
[331175091,1720118472808,154.86836189,9.999e-05,2]
[331175092,1720118474804,182.43919772,9.999e-05,2]
[331175093,1720118476934,247.91125073,9.999e-05,2]
[331175094,1720118478133,154.86836189,9.999e-05,2]
[331175095,1720118482087,286.77263575,9.999e-05,2]
[331175096,1720118485402,195.74610265,9.999e-05,2]
[331175097,1720118487787,154.86836189,9.999e-05,2]
[331175098,1720118491264,932.82450108,9.999e-05,2]
[331175099,1720118496267,210.03176952,9.999e-05,2]